bitfinex-derivatives/quotes_ETHF0:USTF0_20250123
["timestamp","ask_amount","ask_price","bid_price","bid_amount"]
[1737642236573,0.61849,3235.1,3235.0,3.21243571]
[1737642237279,0.61849,3235.1,3235.0,3.83094571]
[1737642237676,0.61844,3235.4,3235.3,0.61843]
[1737642237975,0.61844,3235.4,3235.3,0.61844]
[1737642238773,0.5197,3235.7,3235.0,6.14975565]
[1737642238980,0.6184,3235.6,3235.5,0.6184]
[1737642239480,0.61841,3235.5,3235.4,3.2078]
[1737642241173,0.5197,3235.7,3235.4,3.2078]
[1737642241376,0.61838,3235.7,3235.6,0.61838]
[1737642241776,0.61837,3235.8,3235.7,0.61835]
[1737642242584,2.05348,3236.1,3235.5,0.5073]
[1737642242785,0.61839,3235.7,3235.6,0.61837]
[1737642243481,0.61839,3235.7,3235.6,0.61838]
[1737642243783,0.61835,3235.9,3235.8,0.61833]
[1737642243990,1.12601,3236.1,3236.0,0.61832]
[1737642244888,0.61835,3236.0,3235.9,0.61832]
[1737642245188,0.61839,3235.6,3235.5,1.12569]
[1737642245489,0.61839,3235.6,3235.5,0.61839]
[1737642247488,2.05347,3236.1,3235.4,3.2078]
[1737642247693,0.61841,3235.5,3235.4,3.82623]
[1737642248284,0.6184,3235.6,3235.5,0.61839]
[1737642248488,0.61836,3235.9,3235.8,0.61834]
[1737642248686,0.61836,3235.9,3235.4,3.2078]
[1737642248687,0.5077,3236.1,3235.4,5.63179095]
[1737642248891,3.7307,3236.2,3236.1,0.6183]
[1737642248892,4.34898,3236.2,3236.1,0.6183]
[1737642249188,3.7307,3236.2,3236.1,0.6183]
[1737642249491,0.61831,3236.1,3236.0,0.6183]
[1737642249883,1.1412,3236.2,3236.1,0.6183]
[1737642250080,1.1412,3236.2,3236.1,41.4183]
[1737642250894,1.1412,3236.2,3236.1,40.8]
[1737642251192,1.1412,3236.2,3236.1,41.4183]
[1737642252298,0.6183,3236.2,3236.1,41.4183]
[1737642253402,1.54528,3237.1,3236.2,1.5457]
[1737642253698,0.6182,3236.7,3236.6,0.61818]
[1737642254098,0.61823,3236.6,3236.5,0.6182]
[1737642254494,3.94120354,3236.8,3236.3,3.2078]
[1737642254699,0.5015,3237.2,3236.3,5.63179095]
[1737642255001,4.44270354,3237.2,3236.7,3.2078]
[1737642255303,0.5015,3237.2,3237.1,3.82591]
[1737642255601,0.61805,3237.5,3237.4,0.61803]
[1737642255798,0.9926,3237.8,3237.1,3.2078]
[1737642256000,0.9926,3237.8,3236.9,3.96935095]
[1737642256001,0.61802,3237.6,3237.5,3.2078]
[1737642256197,0.61802,3237.6,3237.5,3.82583]
[1737642256601,0.61802,3237.6,3237.5,3.2078]
[1737642257392,0.61809,3237.2,3237.1,3.2078]
[1737642257806,4.70675591,3237.2,3237.1,3.2078]
[1737642258199,4.70675591,3237.2,3237.1,3.82591]
[1737642258200,0.61809,3237.2,3237.1,3.82591]
[1737642258401,0.61809,3237.2,3237.1,3.2078]
[1737642259398,0.61809,3237.2,3237.1,3.82591]
[1737642259708,0.61809,3237.2,3237.1,3.2078]
[1737642260606,0.61809,3237.2,3237.1,3.82591]
[1737642260908,1.54499,3237.7,3237.1,3.2078]
[1737642261107,0.9926,3237.8,3237.1,3.2078]
[1737642261414,0.61796,3237.9,3237.8,0.61796]
[1737642261704,0.4835,3238.1,3237.5,3.2078]
[1737642261906,0.61799,3237.7,3237.6,40.8]
[1737642262508,0.61799,3237.7,3237.6,41.41801]
[1737642263502,0.61796,3237.9,3237.8,0.61796]
[1737642263697,0.4835,3238.1,3237.7,0.61798]
[1737642263902,0.4835,3238.1,3237.6,40.8]
[1737642263903,0.61796,3237.9,3237.8,0.61797]
[1737642264207,0.61798,3237.8,3237.7,0.61798]
[1737642264606,0.4835,3238.1,3237.7,0.61798]
[1737642264810,0.61797,3237.9,3237.7,0.61798]
[1737642265006,0.61797,3237.9,3237.6,40.8]
[1737642265210,0.4835,3238.1,3237.6,40.8]
[1737642265211,0.61793,3238.0,3237.8,0.61796]
[1737642265508,0.61797,3237.9,3237.7,0.61798]
[1737642265708,0.61794,3238.0,3237.9,0.61795]
[1737642266106,0.4835,3238.1,3237.5,3.2078]
[1737642266306,0.618,3237.7,3237.6,0.618]
[1737642266509,0.61798,3237.8,3237.7,0.61799]
[1737642268812,0.61794,3238.0,3237.9,0.61794]
[1737642269507,1.0277,3238.3,3237.5,4.75288]
[1737642269711,0.61796,3237.9,3237.8,0.61796]
[1737642270607,0.61795,3238.0,3237.9,0.61795]
[1737642271006,3.92736212,3238.2,3237.6,1.54503]
[1737642271211,1.12168,3238.3,3238.2,0.6179]
[1737642271408,0.61786,3238.5,3238.4,0.61785]
[1737642272515,0.61783,3238.6,3238.5,0.61783]
[1737642272915,1.0074,3238.7,3238.6,0.61782]
[1737642272916,1.62522,3238.7,3238.6,0.61782]
[1737642273802,0.61785,3238.5,3238.4,0.61784]
[1737642275419,0.61783,3238.6,3238.5,0.61782]
[1737642277311,1.62521,3238.7,3238.6,0.61782]
[1737642277813,0.61784,3238.6,3238.5,0.61783]
[1737642278704,0.61784,3238.5,3238.4,3.2078]
[1737642278908,0.61784,3238.5,3238.4,3.82566]
[1737642281417,0.61778,3238.9,3238.8,0.61777]
[1737642281815,0.61776,3239.0,3238.9,0.61774]
[1737642283212,0.61779,3238.9,3238.8,0.61777]
[1737642283614,3.2078,3239.1,3238.6,41.2846]
[1737642283807,0.61779,3238.8,3238.7,0.61778]
[1737642284412,0.61784,3238.5,3238.4,3.2078]
[1737642294028,0.61784,3238.5,3238.4,3.82566]
[1737642294626,0.61784,3238.5,3238.4,3.2078]
[1737642295430,1.12984,3238.5,3238.4,3.2078]
[1737642295626,0.512,3238.5,3238.2,0.00463571]
[1737642295824,0.61788,3238.3,3238.2,0.62253571]
[1737642298935,0.42580691,3238.5,3238.4,0.61786]
[1737642299233,0.42602103,3239.0,3238.4,3.82566]
[1737642299443,1.04377103,3239.0,3238.9,0.61776]
[1737642300034,0.42602103,3239.0,3238.5,42.34458]
[1737642300231,0.42602103,3239.0,3238.9,3.82556]
[1737642300436,0.4821,3239.5,3239.3,0.61769]
[1737642300627,0.61763,3239.7,3239.6,0.61763]
[1737642301133,0.4821,3240.0,3239.3,2.42399095]
[1737642301434,3.8254,3239.8,3239.4,0.61767]
[1737642301644,3.2078,3239.8,3239.7,0.61761]
[1737642302132,0.61761,3239.7,3239.3,5.63179095]
[1737642302333,0.61761,3239.7,3239.4,0.61767]
[1737642302537,0.61767,3239.4,3239.3,3.82548]
[1737642302938,0.61766,3239.5,3239.3,3.2078]
[1737642303138,1.11954,3239.6,3239.4,0.61765]
[1737642303835,0.61765,3239.5,3239.4,0.61765]
[1737642304036,0.61767,3239.4,3239.3,3.2078]
[1737642304340,1.09277,3239.4,3239.3,3.2078]
[1737642311245,0.61777,3239.0,3238.9,3.2078]
[1737642311544,0.61777,3239.0,3238.9,3.82556]
[1737642311741,0.61777,3239.0,3238.9,3.2078]
[1737642311939,0.61786,3238.4,3238.3,0.61786]
[1737642312242,0.61788,3238.3,3238.2,0.62252571]
[1737642312437,0.61788,3238.3,3238.2,40.80463571]
[1737642312636,0.61788,3238.3,3238.2,41.42253571]
[1737642312831,0.61788,3238.3,3238.2,40.80463571]
[1737642313842,0.61788,3238.3,3238.2,0.00463571]
[1737642318939,4.64137945,3238.3,3238.2,0.00463571]
[1737642319145,4.64137945,3238.3,3238.2,5.71e-06]
[1737642319146,15.688712,3238.3,3238.2,5.71e-06]
[1737642319444,16.193812,3238.3,3238.2,5.71e-06]
[1737642320448,13.76982105,3238.3,3238.2,5.71e-06]
[1737642322353,16.193812,3238.3,3238.2,5.71e-06]
[1737642322551,0.61814,3236.9,3236.8,3.2078]
[1737642324247,4.69066064,3236.9,3236.8,3.2078]
[1737642324552,4.07252064,3236.9,3236.6,0.61819]
[1737642324753,0.6182,3236.6,3236.5,0.62284571]
[1737642324939,0.6182,3236.6,3236.5,0.00463571]
[1737642325458,4.71717793,3236.6,3236.5,0.00463571]
[1737642325753,0.00463571,3236.9,3236.6,0.6182]
[1737642325940,0.6182,3236.6,3236.5,0.00463571]
[1737642326146,0.6182,3236.6,3236.5,0.62285571]
[1737642327455,0.6182,3236.6,3236.5,0.00463571]
[1737642327952,0.6182,3236.6,3236.5,40.80463571]
[1737642330945,0.6182,3236.6,3236.5,41.42285571]
[1737642331149,0.6182,3236.6,3236.5,40.80463571]
[1737642332160,0.00463571,3236.9,3236.5,40.80463571]
[1737642332355,0.61817,3236.8,3236.7,0.61818]
[1737642335860,0.00463571,3236.9,3236.5,0.00463571]
[1737642336064,0.61819,3236.7,3236.6,0.61818]
[1737642336560,0.61819,3236.7,3236.5,0.00463571]
[1737642336765,0.6182,3236.6,3236.5,0.62284571]
[1737642337259,0.61815,3237.0,3236.9,0.61814]
[1737642337465,1.54516,3237.4,3236.5,0.00463571]
[1737642337466,0.61805,3237.4,3237.2,0.61808]
[1737642337665,0.5202,3237.5,3236.8,3.2078]
[1737642337867,0.5202,3237.5,3236.9,41.7709]
[1737642338063,0.61811,3237.1,3237.0,0.61811]
[1737642338268,0.61809,3237.3,3237.2,0.61808]
[1737642338568,0.5202,3237.5,3236.9,0.9709]
[1737642338569,0.6181,3237.2,3237.1,0.61809]
[1737642339463,0.5202,3237.5,3236.9,0.9709]
[1737642339666,0.61812,3237.0,3236.9,1.58903]
[1737642340060,0.61812,3237.0,3236.9,42.38903]
[1737642341161,0.61814,3236.9,3236.8,3.2078]
[1737642343870,4.6353139,3236.9,3236.8,3.2078]
[1737642344472,0.6182,3236.6,3236.5,0.00463571]
[1737642345462,4.61627798,3236.6,3236.5,0.00463571]
[1737642345870,0.61835,3235.8,3235.7,3.2078]
[1737642347371,0.6184,3235.7,3235.6,0.61838]
[1737642348574,0.5045,3236.0,3235.4,0.00463571]
[1737642348870,4.00964695,3235.9,3235.4,0.00463571]
[1737642349071,4.52844695,3235.9,3235.4,0.00463571]
[1737642349268,0.6184,3235.6,3235.5,0.6184]
[1737642351173,0.61838,3235.7,3235.6,0.61838]
[1737642352170,0.61838,3235.7,3235.6,41.41838]
[1737642352771,0.5188,3235.9,3235.6,40.8]
[1737642353275,0.61837,3235.7,3235.6,41.41839]
[1737642354974,0.61837,3235.7,3235.6,40.8]
[1737642355172,0.61837,3235.7,3235.4,0.62305571]
[1737642355173,0.61841,3235.5,3235.4,0.62305571]
[1737642355483,0.61841,3235.5,3235.4,0.00463571]
[1737642355775,0.61841,3235.5,3235.4,40.80463571]
[1737642355975,0.61841,3235.5,3235.4,0.00463571]
[1737642357275,3.04240095,3235.5,3235.4,0.00463571]
[1737642357479,6.99693464,3235.5,3235.4,0.00463571]
[1737642359069,4.57294369,3235.5,3235.4,0.00463571]
[1737642359686,0.61841,3235.5,3235.4,0.62306571]
[1737642359984,0.61841,3235.5,3235.4,0.00463571]
[1737642360479,7.09678732,3235.5,3235.4,0.00463571]
[1737642364682,0.5011,3235.8,3235.4,0.00463571]
[1737642364882,0.62295571,3236.1,3236.0,0.61832]
[1737642365080,0.62293571,3236.1,3236.0,0.61832]
[1737642365682,0.61832,3236.0,3235.9,41.41832]
[1737642366480,0.61832,3236.0,3235.9,0.61832]
[1737642367187,0.00463571,3236.1,3235.8,41.2953]
[1737642367484,0.00463571,3236.1,3236.0,0.61832]
[1737642367785,1.54547,3236.7,3235.8,41.2953]
[1737642367786,3.96946095,3236.7,3235.8,41.2953]
[1737642367988,0.4909,3236.6,3236.1,3.2078]
[1737642368290,0.61828,3236.2,3236.1,3.2078]
[1737642371183,0.61828,3236.2,3236.1,3.8261]
[1737642372688,0.4909,3236.6,3236.1,3.2078]
[1737642372992,0.61824,3236.5,3236.4,0.61822]
[1737642373592,0.4909,3236.6,3236.2,0.9864]
[1737642373893,0.61822,3236.6,3236.5,0.61822]
[1737642374084,3.2078,3236.9,3236.3,0.488]
[1737642374280,3.96919095,3237.3,3236.5,3.2078]
[1737642374481,0.61816,3236.8,3236.7,0.61817]
[1737642375482,0.61814,3237.0,3236.9,0.61814]
[1737642375679,0.9817,3237.4,3236.9,3.2078]
[1737642375894,1.10515,3237.4,3237.3,0.61807]
[1737642376190,0.61807,3237.3,3237.2,3.2078]
[1737642376786,0.61807,3237.3,3237.2,3.82589]
[1737642376986,0.61807,3237.3,3237.2,3.2078]
[1737642378181,0.61807,3237.3,3237.2,3.82589]
[1737642378389,0.61807,3237.3,3237.2,3.82587]
[1737642378587,0.61807,3237.3,3237.2,3.2078]
[1737642378787,0.61807,3237.3,3237.2,3.82589]
[1737642379889,0.4887,3237.7,3237.2,3.2078]
[1737642380089,0.61795,3237.9,3237.8,0.61797]
[1737642380298,0.4925,3238.0,3237.2,3.2078]
[1737642380497,6.04064354,3237.9,3237.3,0.61807]
[1737642380688,0.61805,3237.4,3237.3,0.61807]
[1737642381889,0.61802,3237.6,3237.5,0.61802]
[1737642382396,4.63234888,3237.8,3237.7,0.61799]
[1737642382692,0.4925,3238.0,3237.6,3.2078]
[1737642382897,0.61797,3237.9,3237.8,0.61796]
[1737642384298,0.61797,3237.9,3237.8,0.61797]
[1737642384499,0.61797,3237.8,3237.7,1.12648]
[1737642384693,0.4925,3238.0,3237.7,0.5085]
[1737642384898,0.61794,3238.0,3237.9,0.61795]
[1737642385596,0.4887,3238.1,3238.0,0.61793]
[1737642385800,1.10661,3238.1,3238.0,0.61793]
[1737642386298,0.61789,3238.3,3238.2,0.61789]
[1737642387401,0.61787,3238.4,3238.3,0.61786]
[1737642388095,0.61791,3238.2,3238.1,0.61791]
[1737642389092,0.61787,3238.4,3238.3,0.61787]
[1737642389496,0.61787,3238.4,3238.0,3.2078]
[1737642389695,0.61788,3238.3,3238.2,0.61788]
[1737642390103,0.6179,3238.2,3238.1,0.6179]
[1737642390903,0.61791,3238.1,3238.0,3.2078]
[1737642393496,4.02839663,3238.1,3237.6,3.2078]
[1737642393694,0.61799,3237.7,3237.6,3.2078]
[1737642394303,4.67624912,3237.7,3237.6,3.2078]
[1737642395606,0.61799,3237.7,3237.6,3.2078]
[1737642396200,4.72163596,3237.7,3237.6,3.2078]
[1737642396401,0.61799,3237.7,3237.6,3.2078]
[1737642397603,0.61799,3237.7,3237.6,3.82581]
[1737642398310,1.5057,3238.0,3237.6,3.82581]
[1737642398512,0.61798,3237.8,3237.7,0.61798]
[1737642398905,0.61794,3238.0,3237.9,0.61794]
[1737642399613,1.54472,3238.3,3237.8,0.4966]
[1737642399813,0.61795,3237.9,3237.8,1.11455]
[1737642400006,0.61795,3237.9,3237.8,0.61795]
[1737642400212,0.61795,3237.9,3237.8,0.61797]
[1737642400408,1.54479,3238.1,3237.6,3.82579]
[1737642400612,0.61799,3237.7,3237.6,3.82579]
[1737642400912,0.61799,3237.7,3237.6,4.06952662]
[1737642401314,0.61799,3237.7,3237.6,3.45153662]
[1737642401613,0.61799,3237.7,3237.6,3.2078]
[1737642401808,0.61799,3237.7,3237.6,3.82581]
[1737642402908,0.517,3238.0,3237.6,3.2078]
[1737642403111,0.61795,3237.9,3237.8,0.61796]
[1737642403609,1.54471,3238.3,3237.6,3.2078]
[1737642403809,0.61795,3238.0,3237.9,0.61794]
[1737642404007,1.4966,3238.4,3237.6,3.2078]
[1737642404216,0.6179,3238.2,3238.1,0.61789]
[1737642405113,0.61793,3238.1,3238.0,0.61793]
[1737642406607,0.61793,3238.1,3237.6,3.2078]
[1737642406913,0.61798,3237.8,3237.7,0.61797]
[1737642407612,0.61793,3238.1,3237.6,3.2078]
[1737642407914,0.61797,3237.9,3237.8,0.61796]
[1737642408405,0.61794,3238.0,3237.9,0.61793]
[1737642408606,0.61792,3238.1,3238.0,0.61792]
[1737642408805,0.61792,3238.1,3237.7,1.54498]
[1737642408806,4.02077605,3238.3,3237.6,4.75282]
[1737642409008,0.61792,3238.2,3238.1,0.6179]
[1737642409614,0.61793,3238.1,3238.0,0.61792]
[1737642409814,1.4966,3238.4,3237.6,4.75282]
[1737642410001,0.61791,3238.2,3238.1,0.6179]
[1737642410205,0.61793,3238.1,3238.0,0.61792]
[1737642411010,0.61791,3238.2,3238.1,0.6179]
[1737642411511,0.61788,3238.3,3238.2,0.61788]
[1737642412308,1.4966,3238.4,3238.3,0.61788]
[1737642412309,2.11447,3238.4,3238.3,0.61788]
[1737642413009,0.61785,3238.5,3238.0,5.26412]
[1737642413216,1.09321,3238.7,3238.6,0.61782]
[1737642414210,0.42489546,3238.8,3238.7,0.6178]
[1737642414415,1.10483,3239.1,3239.0,0.61774]
[1737642414716,1.10483,3239.1,3239.0,3.82554]
[1737642414916,0.4871,3239.1,3239.0,3.82554]
[1737642415111,1.10482,3239.1,3239.0,3.82554]
[1737642415613,1.10482,3239.1,3239.0,3.2078]
[1737642415814,1.10482,3239.1,3239.0,3.82554]
[1737642416614,0.9542,3239.3,3239.0,3.2078]
[1737642416912,0.61772,3239.1,3239.0,3.82553]
[1737642417117,0.61772,3239.1,3239.0,3.2078]
[1737642417316,0.61772,3239.1,3239.0,3.82554]
[1737642417619,0.61772,3239.1,3239.0,3.2078]
[1737642418012,0.61772,3239.1,3239.0,3.82554]
[1737642418407,0.9542,3239.3,3239.0,3.2078]
[1737642418619,0.61771,3239.2,3239.1,0.61771]
[1737642418811,0.6177,3239.2,3239.0,3.82553]
[1737642419918,0.4758,3239.3,3239.0,3.82553]
[1737642420119,0.61772,3239.1,3239.0,3.82553]
[1737642420320,0.4758,3239.3,3239.0,3.2078]
[1737642420524,0.61772,3239.2,3239.0,3.2078]
[1737642420817,0.61772,3239.1,3239.0,3.82553]
[1737642421023,0.61772,3239.2,3239.1,0.61772]
[1737642421517,0.4777,3239.6,3239.1,0.61771]
[1737642421726,0.4777,3239.6,3239.0,3.2078]
[1737642421727,0.61772,3239.1,3239.0,3.2078]
[1737642422221,0.61772,3239.1,3239.0,3.82554]
[1737642422815,2.5097,3239.6,3239.0,3.2078]
[1737642423028,0.61772,3239.1,3239.0,3.82554]
[1737642423516,0.61771,3239.2,3239.1,0.61772]
[1737642424023,0.6177,3239.3,3239.1,0.61772]
[1737642424224,0.9656,3239.6,3239.0,3.2078]
[1737642424519,0.61768,3239.4,3239.2,0.61769]
[1737642424724,0.61768,3239.4,3239.3,0.61769]
[1737642425425,0.61769,3239.3,3239.2,0.6177]
[1737642425915,0.61772,3239.2,3239.1,0.61772]
[1737642426312,2.50969,3239.6,3239.0,3.2078]
[1737642426518,0.61772,3239.1,3239.0,3.2078]
[1737642426924,3.04171095,3239.1,3239.0,3.2078]
[1737642428518,0.61778,3238.8,3238.7,0.00463571]
[1737642429325,3.04177095,3238.8,3238.7,0.00463571]
[1737642430228,3.04177095,3238.8,3238.0,3.45858921]
[1737642430229,9.60153676,3238.8,3238.0,3.45858921]
[1737642430432,0.61791,3238.1,3238.0,3.2078]
[1737642437533,0.61791,3238.1,3238.0,44.0078]
[1737642438629,0.4837,3238.3,3238.0,44.62573]
[1737642438830,0.6179,3238.2,3238.1,0.61791]
[1737642439132,0.6179,3238.2,3238.0,44.0078]
[1737642439133,0.4837,3238.3,3238.0,44.0078]
[1737642439338,0.61791,3238.1,3238.0,44.62572]
[1737642440229,0.4837,3238.3,3238.0,44.0078]
[1737642440534,0.6179,3238.2,3238.1,0.6179]
[1737642440939,0.61788,3238.3,3238.2,0.61789]
[1737642441131,0.51993571,3238.4,3238.2,0.61789]
[1737642441132,0.62250571,3238.4,3238.2,0.61789]
[1737642441330,0.62250571,3238.4,3238.3,0.61788]
[1737642441529,0.62249571,3238.4,3238.1,1.0185]
[1737642441733,0.00463571,3238.4,3238.1,1.0185]
[1737642441939,0.61788,3238.3,3238.2,0.61789]
[1737642442132,0.00463571,3238.4,3238.1,1.0185]
[1737642442639,0.6178,3238.7,3238.2,1.54474]
[1737642442835,0.6178,3238.7,3238.6,0.61782]
[1737642443035,0.5212,3238.9,3238.5,3.2078]
[1737642443236,0.61779,3238.8,3238.7,0.61779]
[1737642443431,0.5212,3238.9,3238.5,3.2078]
[1737642443432,0.61777,3238.9,3238.8,0.61777]
[1737642443740,0.61774,3239.0,3238.9,0.61776]
[1737642443937,0.61774,3239.1,3239.0,0.61774]
[1737642444134,1.4981,3239.3,3238.5,4.75237]
[1737642444442,0.61775,3239.0,3238.9,0.61775]
[1737642445436,0.61777,3238.9,3238.8,0.61777]
[1737642446738,0.61776,3239.0,3238.9,0.61776]
[1737642447138,0.61776,3239.0,3238.9,3.82556]
[1737642448041,0.61776,3239.0,3238.9,3.2078]
[1737642457140,0.61776,3239.0,3238.9,3.82556]
[1737642458439,0.61776,3239.0,3238.9,3.2078]
[1737642459143,2.16199,3239.2,3238.9,3.2078]
[1737642459348,0.61774,3239.0,3238.9,3.2078]
[1737642463144,0.61774,3239.0,3238.9,3.82556]
[1737642464648,0.61774,3239.0,3238.9,3.2078]
[1737642474058,0.61774,3239.0,3238.9,3.82556]
[1737642476851,0.61774,3239.0,3238.9,3.2078]
[1737642480364,0.61774,3239.0,3238.9,3.82556]
[1737642480860,0.26678759,3239.2,3238.9,3.2078]
[1737642481176,0.61771,3239.2,3239.1,0.6177]
[1737642481360,1.4981,3239.3,3239.0,0.5011]
[1737642481559,0.61772,3239.1,3239.0,1.11883]
[1737642481967,1.4981,3239.3,3239.0,0.61773]
[1737642482168,0.61774,3239.0,3238.9,44.0078]
[1737642482363,5.63179095,3239.1,3238.5,3.2078]
[1737642482571,1.5446,3238.5,3237.8,1.0273]
[1737642482867,0.61793,3238.0,3237.7,3.83041571]
[1737642483057,0.61793,3238.0,3237.7,3.21243571]
[1737642483258,0.61793,3238.0,3237.8,0.61796]
[1737642483567,1.527,3238.4,3238.3,0.61788]
[1737642483568,0.92876961,3238.4,3238.3,0.61788]
[1737642483861,0.5025,3238.9,3238.5,0.61782]
[1737642484173,0.61782,3238.6,3238.5,0.61782]
[1737642485469,0.6178,3238.7,3238.3,3.2078]
[1737642485665,1.012,3238.9,3238.3,3.2078]
[1737642485865,0.61785,3238.5,3238.4,0.61785]
[1737642486260,0.61786,3238.4,3238.3,3.82567]
[1737642486767,0.61786,3238.4,3238.3,3.2078]
[1737642487269,0.61786,3238.4,3238.3,3.82568]
[1737642487469,0.61786,3238.4,3238.3,3.2078]
[1737642488363,0.61785,3238.5,3238.4,0.61785]
[1737642489270,0.61785,3238.5,3238.3,3.2078]
[1737642489465,0.61785,3238.5,3238.4,0.61786]
[1737642489963,0.61785,3238.5,3238.4,41.41786]
[1737642490762,0.507,3238.7,3238.6,0.61782]
[1737642490967,0.507,3238.7,3238.5,1.59613]
[1737642490968,0.61782,3238.6,3238.5,1.59613]
[1737642491167,0.61782,3238.6,3238.5,1.59614]
[1737642491368,0.61782,3238.6,3238.5,0.9783]
[1737642492473,1.012,3238.9,3238.5,0.9783]
[1737642492778,0.6178,3238.7,3238.6,0.6178]
[1737642493274,0.33527176,3238.7,3238.6,0.6178]
[1737642493663,0.5212,3239.3,3238.5,1.4874]
[1737642493869,0.61777,3238.9,3238.8,3.2078]
[1737642494968,0.61777,3238.9,3238.8,3.82558]
[1737642495168,0.61777,3238.9,3238.8,3.2078]
[1737642508571,1.0029,3239.6,3239.1,0.61772]
[1737642508773,0.61772,3239.2,3239.1,0.61772]
[1737642509073,0.61773,3239.1,3239.0,0.61773]
[1737642509273,1.54419,3239.4,3238.8,3.2078]
[1737642509569,0.61775,3239.0,3238.9,0.61774]
[1737642510163,1.54419,3239.4,3238.8,3.2078]
[1737642510368,0.61773,3239.1,3239.0,0.61773]
[1737642510565,0.61776,3239.0,3238.9,0.61774]
[1737642513172,1.54419,3239.4,3238.8,3.2078]
[1737642513474,0.61773,3239.1,3239.0,0.61773]
[1737642513671,2.54699,3239.6,3239.0,3.82553]
[1737642513869,0.61772,3239.1,3239.0,3.82553]
[1737642514070,2.54699,3239.6,3239.0,3.2078]
[1737642514266,0.61769,3239.3,3239.2,0.61769]
[1737642515380,0.6177,3239.2,3239.1,1.09931]
[1737642516782,0.6177,3239.2,3239.1,1.34231724]
[1737642517582,0.6177,3239.2,3239.1,4.55011724]
[1737642518083,0.6177,3239.2,3239.1,4.06851724]
[1737642518473,0.6177,3239.2,3239.1,3.2078]
[1737642518875,0.61786,3238.4,3238.3,3.2078]
[1737642519583,2.09436,3238.4,3238.3,3.2078]
[1737642520883,0.61793,3238.0,3237.9,0.84930581]
[1737642521184,0.61793,3238.0,3237.9,1.46725581]
[1737642521381,0.61793,3238.0,3237.9,0.84930581]
[1737642526289,0.61793,3238.0,3237.9,1.46725581]
[1737642526783,0.61793,3238.0,3237.9,0.84930581]
[1737642526987,0.61797,3237.8,3237.7,0.00463571]
[1737642527392,0.61803,3237.5,3237.4,3.2078]
[1737642527578,3.04202095,3237.5,3237.4,3.2078]
[1737642527984,0.61811,3237.1,3237.0,3.2078]
[1737642528184,3.04210095,3237.1,3237.0,3.2078]
[1737642530388,9.65148239,3237.1,3236.7,0.00463571]
[1737642530686,3.04215095,3236.8,3236.7,0.00463571]
[1737642532788,1.0118,3237.0,3236.7,40.80463571]
[1737642533083,0.61815,3236.9,3236.8,0.61815]
[1737642535094,0.61816,3236.8,3236.7,0.00463571]
[1737642535297,3.04215095,3236.8,3236.7,0.00463571]
[1737642540098,7.12478154,3236.8,3236.7,0.00463571]
[1737642541702,4.70079059,3236.8,3236.7,0.00463571]
[1737642554410,0.61816,3236.8,3236.7,0.00463571]
[1737642557115,0.41816,3236.8,3236.7,0.00463571]
[1737642558216,4.90442717,3236.8,3236.7,0.00463571]
[1737642558409,5.83851111,3236.8,3236.7,5.71e-06]
[1737642558615,10.83851111,3236.8,3236.7,5.71e-06]
[1737642559418,10.42035111,3236.8,3236.1,0.4789]
[1737642559620,3.04227095,3236.2,3236.1,0.4789]
[1737642559815,2.42399095,3236.2,3235.9,0.4754]
[1737642560028,0.61832,3236.0,3235.9,0.4754]
[1737642561621,0.41238394,3236.1,3235.9,0.4754]
[1737642561914,0.61832,3236.0,3235.9,1.09372]
[1737642564021,0.61832,3236.0,3235.9,0.4754]
[1737642569814,0.61833,3235.9,3235.8,3.2078]
[1737642570023,1.11113,3235.9,3235.8,3.2078]
[1737642572432,0.61833,3235.9,3235.8,3.2078]
[1737642572732,0.61833,3236.0,3235.9,0.61832]
[1737642573235,0.61833,3236.0,3235.9,1.12722]
[1737642573832,0.61833,3236.0,3235.6,0.00463571]
[1737642573833,7.17312656,3236.0,3235.6,0.00463571]
[1737642574031,0.61837,3235.7,3235.6,0.00463571]
[1737642574929,4.54334864,3235.7,3235.6,0.00463571]
[1737642575130,4.95679546,3235.7,3235.6,0.00463571]
[1737642578928,4.33842546,3235.7,3235.6,0.00463571]
[1737642579227,3.2078,3236.4,3235.6,5.63642666]
[1737642579429,0.4129447,3236.3,3235.6,5.63642666]
[1737642579624,0.61826,3236.3,3236.1,0.61829]
[1737642579834,0.61826,3236.3,3236.2,0.4763]
[1737642582230,0.61826,3236.3,3236.2,3.6841]
[1737642582633,0.61826,3236.3,3236.2,4.30238]
[1737642582941,0.61826,3236.3,3236.2,3.6841]
[1737642583333,0.61826,3236.3,3236.2,4.30238]
[1737642583635,0.61825,3236.4,3236.2,3.6841]
[1737642583832,0.61825,3236.4,3236.3,0.5041]
[1737642583833,0.61824,3236.4,3236.3,0.5041]
[1737642584635,0.61824,3236.4,3236.3,1.12236]
[1737642584834,0.61824,3236.4,3236.3,41.92236]
[1737642585340,1.45107182,3236.7,3236.3,41.3041]
[1737642585538,0.61823,3236.5,3236.4,0.61823]
[1737642585738,0.61821,3236.6,3236.4,0.61823]
[1737642586939,1.03106182,3236.7,3236.5,0.61821]
[1737642587237,3.2078,3236.8,3236.3,41.3041]
[1737642587439,5.63642666,3237.4,3236.6,3.2078]
[1737642587636,5.63642666,3237.4,3236.7,1.0094]
[1737642587637,0.41288837,3237.3,3236.7,1.0094]
[1737642587834,1.03096837,3237.3,3237.1,0.61811]
[1737642588034,1.03096837,3237.3,3237.2,0.9736]
[1737642590141,3.83049571,3237.4,3237.2,0.9736]
[1737642590341,3.83049571,3237.4,3237.2,1.59169]
[1737642590542,3.83049571,3237.4,3237.2,0.9736]
[1737642590741,0.61807,3237.3,3237.2,0.9736]
[1737642591132,3.83048571,3237.4,3237.2,0.9736]